bitfinex/quotes_SOLUSD_20220109
["timestamp","ask_amount","ask_price","bid_price","bid_amount"]
[1641715864810,3.99941927,141.34,141.31,26.24044074]
[1641715865209,3.99941927,141.35,141.31,26.24044074]
[1641715866610,3.99941927,141.36,141.31,36.85414074]
[1641715867209,3.99941927,141.37,141.31,36.85414074]
[1641715867811,3.99941927,141.37,141.31,23.74044074]
[1641715870138,3.99941927,141.37,141.31,34.35394074]
[1641715870937,3.99941927,141.38,141.31,34.35394074]
[1641715871440,3.99941927,141.38,141.31,23.74044074]
[1641715872138,32.37747467,141.38,141.27,45.5797]
[1641715872340,32.37747467,141.38,141.29,10.6152]
[1641715872539,3.0,141.37,141.25,10.2]
[1641715872740,80.4111,141.37,141.27,700.0]
[1641715873139,80.4111,141.37,141.28,26.03151393]
[1641715873338,7.99521934,141.36,141.28,26.03151393]
[1641715874640,95.02651927,141.37,141.28,26.03151393]
[1641715874839,95.02651927,141.37,141.28,36.64741393]
[1641715875140,7.9868926,141.36,141.28,26.03151393]
[1641715875339,10.6169,141.35,141.28,26.03151393]
[1641715875638,7.9868926,141.36,141.28,26.03151393]
[1641715875838,84.41051927,141.37,141.28,26.03151393]
[1641715876741,10.6174,141.35,141.28,26.03151393]
[1641715876939,114.78627588,141.37,141.28,26.03151393]
[1641715877140,3.99941927,141.36,141.28,26.03151393]
[1641715878546,3.0,141.35,141.28,26.03151393]
[1641715878746,10.6184,141.33,141.28,26.03151393]
[1641715880647,14.61691927,141.35,141.28,26.03151393]
[1641715881247,3.99941927,141.33,141.28,26.03151393]
[1641715881847,3.99941927,141.32,141.28,26.03151393]
[1641715882449,3.99941927,141.33,141.28,26.03151393]
[1641715882648,3.99941927,141.33,141.27,300.0]
[1641715883048,14.61781927,141.33,141.27,300.0]
[1641715883250,3.99941927,141.33,141.27,300.0]
[1641715883448,3.07,141.32,141.27,300.0]
[1641715883648,29.73193356,141.32,141.27,300.0]
[1641715883849,3.99941927,141.3,141.27,300.0]
[1641715884048,10.6228,141.28,141.27,300.0]
[1641715885051,41.6228,141.28,141.27,79.16161204]
[1641715885252,41.6228,141.28,141.14,10.2]
[1641715885253,9.66538796,141.27,141.14,10.2]
[1641715885452,10.6265,141.23,141.14,10.2]
[1641715886056,27.66709187,141.22,141.14,40.85882579]
[1641715886455,10.6309,141.18,141.14,40.85882579]
[1641715886655,10.1309,141.18,141.14,40.85882579]
[1641715886858,3.99941927,141.24,141.14,40.92882579]
[1641715887056,3.99941927,141.24,141.14,51.55572579]
[1641715887558,39.42461927,141.25,141.14,51.55572579]
[1641715887759,10.6266,141.22,141.14,51.55572579]
[1641715888058,10.6266,141.22,141.14,40.92882579]
[1641715888259,41.10641192,141.22,141.14,40.92882579]
[1641715888490,41.10641192,141.22,141.14,30.72882579]
[1641715888662,3.0,141.21,141.14,30.72882579]
[1641715888862,10.6299,141.18,141.14,30.72882579]
[1641715889963,10.6285,141.2,141.14,30.72882579]
[1641715890563,10.6285,141.2,141.14,0.07]
[1641715891163,27.72269582,141.22,141.14,0.07]
[1641715891164,10.6308,141.17,141.14,0.07]
[1641715891563,3.0,141.19,141.14,0.07]
[1641715891564,63.15359582,141.22,141.14,0.07]
[1641715893965,27.72269582,141.22,141.14,0.07]
[1641715895176,24.3694,141.25,141.14,10.27]
[1641715895367,24.3694,141.25,141.15,0.25]
[1641715895566,3.0,141.24,141.15,0.25]
[1641715895767,10.6283,141.2,141.15,0.25]
[1641715896166,10.6283,141.2,141.15,23.38960752]
[1641715896566,10.6283,141.2,141.15,0.25]
[1641715896970,10.6283,141.2,141.14,10.2]
[1641715897169,10.6283,141.2,141.12,10.2]
[1641715897369,10.6283,141.2,141.13,0.25]
[1641715897768,10.6283,141.2,141.13,31.98810203]
[1641715897969,10.6285,141.22,141.13,31.98810203]
[1641715898773,10.6285,141.22,141.14,10.6285]
[1641715900678,23.2289696,141.21,141.14,10.6285]
[1641715902678,33.8579696,141.21,141.14,10.6285]
[1641715902978,33.8579696,141.21,141.13,42.36730203]
[1641715904680,33.8579696,141.21,141.13,31.73810203]
[1641715905680,33.8579696,141.21,141.13,42.36740203]
[1641715906083,10.629,141.21,141.13,42.36740203]
[1641715906384,10.6281,141.22,141.13,42.36740203]
[1641715907686,10.6281,141.22,141.14,10.2]
[1641715907887,10.6281,141.22,141.14,20.8286]
[1641715908087,10.6281,141.22,141.14,10.2]
[1641715908891,10.6297,141.2,141.14,10.2]
[1641715911114,10.6297,141.2,141.15,27.28977924]
[1641715911913,10.6297,141.2,141.12,20.8294]
[1641715913015,10.6297,141.2,141.13,30.20866965]
[1641715913215,39.43431927,141.23,141.13,30.20866965]
[1641715913412,10.6288,141.21,141.14,10.45]
[1641715913813,10.6288,141.21,141.14,10.2]
[1641715917819,10.6288,141.21,141.14,10.27]
[1641715918021,10.6288,141.21,141.15,0.25]
[1641715918221,3.99941927,141.22,141.15,10.8774]
[1641715918420,3.99941927,141.23,141.15,0.25]
[1641715918920,3.99941927,141.23,141.15,0.51]
[1641715919123,32.1051366,141.24,141.16,29.08453019]
[1641715919320,67.5386366,141.24,141.16,29.08453019]
[1641715919520,3.0,141.23,141.14,10.2]
[1641715920322,10.6301,141.2,141.14,10.2]
[1641715920522,4.01860817,141.22,141.14,33.8612598]
[1641715920725,8.01802744,141.22,141.15,0.25]
[1641715921123,8.01802744,141.22,141.16,0.07]
[1641715921323,3.99941927,141.24,141.16,0.07]
[1641715922125,23.65726503,141.23,141.16,0.07]
[1641715922525,3.0,141.22,141.16,0.07]
[1641715923427,6.99941927,141.22,141.16,0.07]
[1641715923829,10.6324,141.19,141.16,0.07]
[1641715924027,6.06439994,141.18,141.16,0.07]
[1641715924628,24.76774487,141.2,141.16,0.07]
[1641715924829,99.99274487,141.2,141.16,0.07]
[1641715925029,10.6321,141.18,141.16,0.07]
[1641715925232,6.06439994,141.17,141.16,0.07]
[1641715925430,9.06439994,141.17,141.08,10.2]
[1641715925631,24.32852151,141.16,141.08,10.2]
[1641715926037,10.6346,141.15,141.08,10.2]
[1641715926932,24.32852151,141.16,141.08,10.2]
[1641715927933,34.96262151,141.16,141.08,10.2]
[1641715928133,10.6341,141.16,141.08,10.2]
[1641715928335,10.6341,141.16,141.09,0.25]
[1641715928537,3.99941927,141.19,141.09,10.71]
[1641715928734,3.99941927,141.19,141.09,19.082]
[1641715928935,3.99941927,141.19,141.1,4.65345313]
[1641715929137,29.9269748,141.21,141.11,41.03711186]
[1641715929335,29.9269748,141.21,141.11,41.54711186]
[1641715929535,3.0,141.2,141.12,3.0]
[1641715929765,29.9269748,141.21,141.12,18.714]
[1641715929963,25.92755553,141.21,141.13,0.25]
[1641715930163,3.99941927,141.23,141.13,0.51]
[1641715930371,3.99941927,141.23,141.13,8.164]
[1641715930564,3.99941927,141.23,141.14,3.0]
[1641715930762,3.99941927,141.23,141.14,13.2]
[1641715930964,3.99941927,141.23,141.15,0.25]
[1641715931162,3.99941927,141.23,141.15,25.44454248]
[1641715931362,95.47937311,141.24,141.15,25.44454248]
[1641715931864,95.47937311,141.24,141.17,10.626]
[1641715932264,95.47937311,141.24,141.18,0.25]
[1641715933166,95.47937311,141.24,141.15,25.19454248]
[1641715934068,10.6295,141.22,141.15,25.19454248]
[1641715935065,6.99941927,141.23,141.15,35.82184248]
[1641715936167,3.99941927,141.23,141.15,35.82184248]
[1641715936368,76.27921927,141.24,141.16,0.25]
[1641715936568,3.99941927,141.24,141.18,10.6248]
[1641715936769,3.99941927,141.24,141.18,16.5978]
[1641715936967,3.99941927,141.27,141.19,0.25]
[1641715937368,29.32072531,141.27,141.19,0.25]
[1641715938770,39.94612531,141.27,141.19,0.25]
[1641715938978,39.94612531,141.27,141.18,10.6254]
[1641715939170,39.94612531,141.27,141.19,0.25]
[1641715940478,29.32072531,141.27,141.19,0.25]
[1641715940676,29.32072531,141.27,141.19,10.8745]
[1641715940875,29.32072531,141.27,141.2,0.25]
[1641715941277,25.32130604,141.27,141.2,0.25]
[1641715941677,25.32130604,141.27,141.19,10.6245]
[1641715941876,25.32130604,141.27,141.2,0.25]
[1641715942278,29.32072531,141.27,141.2,0.25]
[1641715942477,29.32072531,141.27,141.2,26.84928094]
[1641715942679,3.99941927,141.27,141.2,37.47308094]
[1641715943682,30.54910011,141.28,141.2,37.47308094]
[1641715943880,28.54910011,141.28,141.2,37.47308094]
[1641715944278,39.17370011,141.28,141.2,26.84928094]
[1641715946381,28.54910011,141.28,141.2,37.47308094]
[1641715947880,28.54910011,141.28,141.2,10.8738]
[1641715949283,28.54910011,141.28,141.2,0.25]
[1641715950481,28.54910011,141.28,141.2,10.6238]
[1641715950681,28.54910011,141.28,141.2,13.6238]
[1641715951081,28.54910011,141.28,141.2,3.0]
[1641715951284,28.54910011,141.28,141.18,10.2]
[1641715951482,28.54910011,141.28,141.18,20.8254]
[1641715951882,3.89136614,141.27,141.18,20.8254]
[1641715952684,3.89136614,141.27,141.19,0.25]
[1641715952881,3.89136614,141.27,141.19,10.8745]
[1641715953082,7.89078541,141.27,141.19,10.8745]
[1641715953882,32.54851938,141.28,141.19,10.6245]
[1641715954284,43.17361938,141.28,141.18,10.6253]
[1641715954484,3.94624344,141.27,141.18,10.6253]
[1641715954783,7.94566271,141.27,141.18,10.6253]
[1641715955782,7.94566271,141.27,141.19,10.6245]
[1641715956586,32.54851938,141.28,141.19,10.6245]
[1641715956785,32.54851938,141.28,141.2,0.25]
[1641715957388,32.54851938,141.28,141.18,10.6255]
[1641715957689,32.54851938,141.28,141.17,29.57425639]
[1641715957887,7.97582244,141.27,141.18,3.0]
[1641715958388,7.97582244,141.27,141.18,13.6252]
[1641715958788,7.97582244,141.27,141.19,0.25]
[1641715958988,7.97582244,141.27,141.18,3.0]
[1641715959391,3.99941927,141.26,141.16,33.8559]
[1641715959694,6.99941927,141.26,141.16,10.2]
[1641715959889,7.06941927,141.26,141.16,10.2]
[1641715960089,4.06941927,141.26,141.16,10.2]
[1641715960294,32.57361874,141.25,141.16,10.2]
[1641715960890,32.57361874,141.25,141.17,0.25]
[1641715961095,28.57419947,141.25,141.17,0.25]
[1641715961294,39.20159947,141.25,141.17,0.25]
[1641715961589,39.20159947,141.25,141.16,10.2]
[1641715961789,43.20101874,141.25,141.16,10.2]
[1641715963941,43.20101874,141.25,141.17,28.04064092]
[1641715964243,32.57361874,141.25,141.17,28.04064092]
[1641715964439,3.99941927,141.25,141.17,38.24064092]
[1641715964639,3.99941927,141.26,141.17,38.24064092]
[1641715965040,3.99941927,141.26,141.17,48.86724092]
[1641715965242,3.99941927,141.27,141.17,48.86724092]
[1641715965442,25.44489531,141.26,141.17,48.86724092]
[1641715966942,25.44489531,141.26,141.17,38.24064092]
[1641715967142,8.01698271,141.25,141.14,33.9037]
[1641715967342,11.01698271,141.25,141.14,33.9037]
[1641715967542,0.07,141.24,141.11,104.9]
[1641715967841,89.31671881,141.24,141.11,104.9]
[1641715968042,25.81733329,141.22,141.11,104.9]
[1641715968243,33.08733329,141.22,141.11,10.2]
[1641715968549,35.4462,141.2,141.11,10.2]
[1641715968742,28.90895313,141.19,141.12,0.25]
[1641715968941,31.90895313,141.19,141.12,0.25]
[1641715969143,31.90895313,141.19,141.09,33.44950397]
[1641715969144,28.90895313,141.19,141.1,0.25]
[1641715969943,10.6322,141.18,141.1,10.882]
[1641715970347,10.6322,141.18,141.1,0.25]
[1641715971042,28.90895313,141.19,141.1,0.25]
[1641715971443,31.80401927,141.21,141.1,0.25]
[1641715971645,28.80401927,141.21,141.11,10.2]
[1641715971843,24.8046,141.21,141.11,10.2]
[1641715972044,3.0,141.2,141.13,10.6297]
[1641715972244,24.8046,141.21,141.13,10.6297]
[1641715972448,51.14624512,141.21,141.14,0.25]
[1641715973045,61.77614512,141.21,141.14,0.25]
[1641715973444,61.77614512,141.21,141.13,0.25]
[1641715974046,3.0,141.2,141.13,0.25]
[1641715974777,13.6307,141.2,141.13,0.25]
[1641715975045,13.6307,141.2,141.12,10.6304]
[1641715975246,13.6307,141.2,141.13,0.25]
[1641715976245,10.6307,141.2,141.13,0.25]
[1641715976444,61.77594512,141.21,141.13,0.25]
[1641715976646,26.34164512,141.21,141.13,10.8792]
[1641715976847,3.99941927,141.23,141.13,20.8292]
[1641715977045,3.99941927,141.23,141.14,0.25]
[1641715977244,96.4192,141.24,141.14,0.25]
[1641715977446,10.6284,141.23,141.14,0.25]
[1641715977645,10.6284,141.23,141.13,10.2]
[1641715977845,31.52832586,141.22,141.13,10.2]
[1641715978046,31.52832586,141.22,141.14,28.34359317]
[1641715978548,42.15732586,141.22,141.14,28.34359317]
[1641715979448,31.52832586,141.22,141.14,28.34359317]
[1641715979646,31.52832586,141.22,141.15,0.25]
[1641715979853,31.52832586,141.22,141.15,10.8775]
[1641715980050,73.5164,141.24,141.15,21.0775]
[1641715980446,3.99941927,141.26,141.16,3.26]
[1641715980647,3.99941927,141.26,141.17,10.2]
[1641715980851,3.99941927,141.26,141.17,10.45]
[1641715981050,31.01632709,141.27,141.18,30.89828405]
[1641715981650,31.01632709,141.27,141.19,0.25]
[1641715981849,27.01690782,141.27,141.2,10.6242]
[1641715982348,27.01690782,141.27,141.21,0.25]
[1641715983352,27.01690782,141.27,141.2,10.6242]
[1641715983555,93.55471927,141.28,141.21,28.74582929]
[1641715983556,3.0,141.26,141.21,28.74582929]
[1641715983753,78.9307,141.28,141.21,39.61892929]
[1641715983953,3.99941927,141.29,141.21,39.61892929]
[1641715984153,1.97793402,141.26,141.21,39.61892929]
[1641715985654,1.97793402,141.27,141.21,39.61892929]
[1641715986754,1.97793402,141.26,141.21,39.61892929]
[1641715987365,1.97793402,141.27,141.21,39.61892929]
[1641715987764,1.97793402,141.27,141.21,10.8731]
[1641715988663,1.97793402,141.26,141.21,10.8731]
[1641715988865,1.97793402,141.27,141.21,10.8731]
[1641715989266,29.77300514,141.27,141.21,10.8731]
[1641715989898,29.77300514,141.27,141.2,10.6244]
[1641715990093,29.77300514,141.27,141.2,0.25]
[1641715990694,1.97793402,141.26,141.2,0.25]
[1641715991194,1.97793402,141.26,141.18,34.24428282]
[1641715992296,1.97793402,141.26,141.19,3.0]
[1641715992494,1.97793402,141.26,141.2,0.25]
[1641715993898,1.97793402,141.26,141.21,10.6235]
[1641715994099,1.97793402,141.27,141.21,39.79693421]
[1641715994499,1.97793402,141.27,141.21,49.99693421]
[1641715994901,1.97793402,141.27,141.22,10.8722]
[1641715995098,1.97793402,141.27,141.22,21.0722]
[1641715995702,1.97793402,141.28,141.22,21.0722]
[1641715995902,1.97793402,141.28,141.22,0.25]
[1641715996101,1.97793402,141.28,141.21,29.17343421]
[1641715996301,1.97793402,141.28,141.22,0.25]
[1641715996501,1.97793402,141.29,141.21,29.17343421]
[1641715996908,1.97793402,141.29,141.22,0.25]
[1641715997102,1.97793402,141.28,141.22,10.8723]
[1641715997601,1.97793402,141.28,141.22,10.6223]
[1641715997802,1.97793402,141.29,141.22,10.6223]
[1641715998002,1.97793402,141.29,141.21,39.37343421]
[1641715998303,12.60183402,141.29,141.21,39.37343421]
[1641715998503,1.97793402,141.28,141.21,39.37343421]
[1641715999305,1.97793402,141.27,141.21,10.2]
[1641715999504,1.97793402,141.27,141.15,10.2]
[1641715999705,3.0,141.26,141.15,10.2]
[1641716000106,1.97793402,141.25,141.15,10.2]
[1641716000320,25.89099056,141.24,141.12,37.64018675]
[1641716000509,74.7347,141.23,141.12,37.64018675]
[1641716000709,10.6328,141.18,141.12,37.64018675]
[1641716001510,10.6328,141.18,141.13,0.25]
[1641716001908,10.6314,141.19,141.13,0.25]
[1641716002108,10.6314,141.19,141.12,37.64018675]
[1641716002512,28.04246752,141.18,141.12,10.2]
[1641716002708,28.04246752,141.18,141.13,0.25]
[1641716004610,38.67456752,141.18,141.13,0.25]
[1641716004808,28.04246752,141.18,141.13,0.25]
[1641716005008,1.97793402,141.21,141.13,0.25]
[1641716005211,1.97793402,141.21,141.13,10.8795]
[1641716005409,1.97793402,141.22,141.13,15.53295313]
[1641716005609,1.97793402,141.22,141.14,10.2]
[1641716006011,1.97793402,141.22,141.15,0.25]
[1641716006308,106.32127822,141.23,141.15,0.25]
[1641716006509,106.32127822,141.23,141.16,10.6269]
[1641716006908,106.32127822,141.23,141.17,0.25]
[1641716007311,76.71263402,141.23,141.17,25.23296885]
[1641716008011,1.97793402,141.23,141.17,25.23296885]
[1641716008310,1.97793402,141.23,141.14,10.2]
[1641716008311,1.97793402,141.23,141.16,10.6272]
[1641716008538,1.97793402,141.23,141.17,0.25]
[1641716008910,1.97793402,141.23,141.16,10.6272]
[1641716009611,1.97793402,141.22,141.15,27.8138148]
[1641716011115,1.97793402,141.22,141.14,10.2]
[1641716011915,3.0,141.21,141.14,10.2]
[1641716012116,12.60883402,141.2,141.14,10.2]
[1641716012617,1.97793402,141.2,141.14,10.2]
[1641716014616,1.97793402,141.2,141.1,40.28325905]
[1641716014816,90.51453402,141.2,141.1,10.2]
[1641716015016,3.0,141.19,141.1,10.2]
[1641716015816,10.6349,141.15,141.1,10.2]
[1641716016048,35.4523,141.16,141.1,10.2]
[1641716016248,3.0,141.14,141.1,10.2]
[1641716016849,10.6356,141.12,141.1,10.2]
[1641716017049,6.06439994,141.11,141.1,10.2]
[1641716017549,6.06439994,141.11,141.04,21.28288921]
[1641716017749,6.06439994,141.11,141.04,10.2]
[1641716018249,30.31062236,141.1,141.01,96.70566443]
[1641716018448,33.31062236,141.1,141.01,96.70566443]
[1641716019051,33.31062236,141.1,141.02,0.25]
[1641716019352,33.31062236,141.1,141.02,23.3955427]
[1641716019551,124.55943402,141.14,141.02,23.3955427]
[1641716019852,124.55943402,141.14,141.03,10.2]
[1641716020153,3.0,141.13,141.02,48.2550427]
[1641716020453,24.67897368,141.12,141.03,10.2]
[1641716020650,10.637,141.1,141.03,20.8369]
[1641716020852,24.67897368,141.12,141.03,10.2]
[1641716021052,24.67897368,141.12,141.04,0.25]
[1641716021451,3.0,141.11,141.04,0.25]
[1641716021656,10.6372,141.1,141.04,0.25]
[1641716021851,3.0,141.11,141.04,0.25]
[1641716022052,24.67897368,141.12,141.04,1.65345313]
[1641716022252,24.67897368,141.12,141.04,1.90345313]
[1641716022653,35.31457368,141.12,141.05,10.6356]
[1641716022855,35.31457368,141.12,141.04,0.25]
[1641716023056,35.31457368,141.12,141.03,10.2]
[1641716023758,35.31457368,141.12,141.03,22.48985313]
[1641716023957,3.0,141.11,141.03,22.48985313]
[1641716024158,10.637,141.1,141.03,22.48985313]
[1641716024360,3.0,141.11,141.04,0.25]
[1641716024559,24.67897368,141.12,141.04,0.25]
[1641716024760,122.5815,141.14,141.04,10.8862]
[1641716024961,75.0912,141.14,141.04,25.99965313]
[1641716025765,29.83894675,141.13,141.04,25.73965313]
[1641716025960,29.83894675,141.13,141.04,24.0862]
[1641716026160,29.83894675,141.13,141.04,21.0862]
[1641716026561,29.83894675,141.13,141.05,30.1926767]
[1641716026861,29.83894675,141.13,141.06,10.45]
[1641716028060,29.83894675,141.13,141.06,10.2]
[1641716028262,29.83894675,141.13,141.07,0.25]
[1641716029166,40.47434675,141.13,141.07,0.25]
[1641716029364,40.47434675,141.13,141.07,3.25]
[1641716030366,40.47434675,141.13,141.07,0.25]
[1641716031465,29.83894675,141.13,141.07,0.25]
[1641716031665,25.81523402,141.17,141.07,0.25]
[1641716031864,1.97793402,141.17,141.08,10.2]
[1641716032065,1.97793402,141.17,141.09,3.0]
[1641716032265,1.97793402,141.17,141.09,3.51]
[1641716032564,29.58917565,141.17,141.09,3.51]
[1641716033767,29.58917565,141.17,141.09,3.25]
[1641716034067,29.58917565,141.17,141.08,10.2]
[1641716035868,29.58917565,141.17,141.08,20.8333]
[1641716035869,40.22117565,141.17,141.08,20.8333]
[1641716037267,31.56710967,141.17,141.11,10.6308]
[1641716038070,1.97793402,141.19,141.11,10.6308]
[1641716038472,1.97793402,141.19,141.12,0.25]
[1641716038870,12.60853402,141.19,141.12,0.25]
[1641716039069,24.94165263,141.18,141.12,0.25]
[1641716041975,35.57345263,141.18,141.12,0.25]
[1641716042178,35.57345263,141.18,141.09,10.8818]
[1641716042405,3.0,141.17,141.09,0.25]
[1641716042603,24.94165263,141.18,141.08,24.221]
[1641716043004,10.634,141.15,141.08,24.221]
[1641716043906,10.634,141.15,141.09,0.25]
[1641716044707,1.97793402,141.17,141.09,0.25]
[1641716044906,10.6329,141.16,141.09,0.25]
[1641716046209,22.70366552,141.15,141.09,0.25]
[1641716046509,33.33736552,141.15,141.09,0.25]
[1641716047208,33.33736552,141.15,141.08,24.221]
[1641716047608,33.33736552,141.15,141.07,62.6721458]
[1641716047809,35.31529954,141.15,141.08,0.25]
[1641716048011,3.0,141.14,141.08,0.25]
[1641716048609,13.6343,141.14,141.07,24.9707]
[1641716048812,13.6343,141.14,141.06,20.8345]
[1641716049009,13.6343,141.14,141.06,10.2]
[1641716049509,1.97793402,141.13,141.06,10.2]
[1641716049712,39.61264315,141.12,141.06,10.2]
[1641716049909,39.61264315,141.12,141.05,10.6355]
[1641716050712,1.97793402,141.13,141.06,27.56984404]
[1641716050910,1.97793402,141.13,141.07,0.25]
[1641716051314,100.89743402,141.15,141.06,27.56984404]
[1641716051710,31.37843015,141.14,141.06,27.56984404]
[1641716051911,10.6355,141.13,141.05,10.2]
[1641716052111,10.6355,141.13,141.06,3.0]
[1641716053011,10.6355,141.13,141.06,28.85836768]
[1641716054916,12.61343402,141.13,141.06,39.49296768]
[1641716055312,12.61343402,141.13,141.07,0.25]
[1641716056213,10.6355,141.13,141.07,0.25]
[1641716056414,33.35636417,141.14,141.07,10.8838]
[1641716056613,1.97793402,141.14,141.07,10.8838]
[1641716057214,1.97793402,141.14,141.08,10.46]
[1641716057415,1.97793402,141.14,141.09,0.25]
[1641716057615,1.97793402,141.15,141.09,32.16937025]
[1641716057816,1.97793402,141.15,141.09,40.49537025]
[1641716058015,1.97793402,141.15,141.12,10.6295]
[1641716058215,1.97793402,141.15,141.12,17.7605]
[1641716058417,1.97793402,141.16,141.12,17.7605]
[1641716058620,1.97793402,141.16,141.12,45.71931762]
[1641716059219,1.97793402,141.17,141.12,45.71931762]
[1641716061625,1.97793402,141.17,141.12,35.08981762]
[1641716062225,1.97793402,141.17,141.12,7.131]
[1641716062424,1.97793402,141.17,141.09,24.5656]
[1641716062625,1.97793402,141.16,141.11,0.25]
[1641716062824,1.97793402,141.16,141.1,10.6314]
[1641716063025,1.97793402,141.16,141.11,0.25]
[1641716063224,1.97793402,141.16,141.11,25.62877583]
[1641716064627,1.97793402,141.16,141.13,10.629]
[1641716068132,1.97793402,141.16,141.11,36.25937583]
[1641716071661,1.97793402,141.16,141.12,3.0]
[1641716071861,1.97793402,141.16,141.13,10.6291]
[1641716072061,1.97793402,141.16,141.14,31.17534032]
[1641716072663,1.97793402,141.17,141.14,31.17534032]
[1641716073463,1.97793402,141.17,141.14,41.80414032]
[1641716075965,1.97793402,141.17,141.14,10.6288]
[1641716076166,1.97793402,141.17,141.13,10.6294]
[1641716076366,1.97793402,141.17,141.11,3.25]
[1641716076565,1.97793402,141.17,141.11,10.45]
[1641716077169,1.97793402,141.17,141.12,10.6304]
[1641716077372,1.97793402,141.17,141.11,10.45]
[1641716077973,26.72331747,141.17,141.11,10.45]
[1641716078170,26.72331747,141.17,141.11,10.2]
[1641716078372,37.35521747,141.17,141.09,24.3156]
[1641716078571,4.97793402,141.16,141.08,10.6328]
[1641716078772,4.97793402,141.16,141.04,26.93206443]
[1641716078970,101.7829,141.15,141.04,26.93206443]
[1641716079169,101.7829,141.15,141.03,34.8816]
[1641716079370,10.6366,141.11,141.04,10.6362]
[1641716079575,42.46678678,141.11,141.04,10.6362]
[1641716079874,3.0,141.1,141.02,32.86414202]
[1641716080075,3.0,141.1,141.02,30.85847759]
[1641716080276,31.83018678,141.11,141.02,30.85847759]
[1641716080477,10.6374,141.09,141.02,41.49587759]
[1641716081079,10.6374,141.09,141.01,104.9]
[1641716081279,3.0,141.08,141.01,104.9]
[1641716081479,10.6415,141.05,141.01,94.7]
[1641716082078,31.0733876,141.04,141.01,94.7]
[1641716082278,6.06439994,141.03,140.97,69.15206443]
[1641716082681,16.70639994,141.03,140.97,69.15206443]
[1641716082878,3.0,141.02,140.97,69.15206443]
[1641716083082,3.0,141.02,140.97,67.1464]
[1641716083480,29.8608756,141.01,140.97,67.1464]
[1641716084681,3.0,141.03,140.97,67.1464]
[1641716084888,37.10833402,141.07,140.97,67.1464]
[1641716085081,3.0,141.04,140.97,67.1464]
[1641716085685,10.6434,141.01,140.97,67.1464]
[1641716086080,3.0,141.0,140.97,67.1464]
[1641716086282,6.06439994,140.99,140.97,67.1464]
[1641716086782,42.62015243,140.98,140.97,67.1464]
[1641716087390,42.62015243,140.98,140.95,68.8478]
[1641716087585,3.03219997,140.97,140.92,94.7]
[1641716087785,10.6523,140.95,140.92,94.7]
[1641716087984,6.03219997,140.94,140.92,94.7]
[1641716088386,31.53857308,140.93,140.92,94.7]
[1641716088589,34.53857308,140.93,140.92,94.7]
[1641716088784,37.57077305,140.93,140.92,94.7]
[1641716089186,48.22347305,140.93,140.92,94.7]
[1641716090189,48.22347305,140.93,140.82,35.136]
[1641716090388,3.0,140.92,140.83,0.25]
[1641716090690,10.6511,140.91,140.82,24.4835]
[1641716090888,10.6511,140.91,140.83,0.26]
[1641716091089,3.0,140.9,140.83,10.46]
[1641716091289,3.0,140.9,140.85,10.6503]
[1641716091486,31.53857308,140.93,140.85,10.6503]
[1641716091987,31.53857308,140.93,140.86,0.25]
[1641716092488,31.53857308,140.93,140.83,10.46]
[1641716092489,42.18907308,140.93,140.83,10.46]
[1641716092688,42.18907308,140.93,140.83,10.2]
[1641716092890,42.18907308,140.93,140.84,0.25]
[1641716093091,3.0,140.92,140.84,0.25]
[1641716093692,31.53857308,140.93,140.84,0.25]
[1641716093894,31.53857308,140.93,140.84,0.51]
[1641716094096,31.53857308,140.93,140.84,3.51]
[1641716094916,42.18887308,140.93,140.85,10.6497]
[1641716095119,42.18887308,140.93,140.84,3.51]
[1641716095317,31.53857308,140.93,140.84,3.51]
[1641716095516,31.53857308,140.93,140.84,13.71]
[1641716095718,31.53857308,140.93,140.84,10.71]
[1641716095921,31.53857308,140.93,140.85,13.6499]
[1641716096119,31.53857308,140.93,140.85,3.0]